fUSD/lending_fUSD_20260427
["ID","MTS","AMOUNT","RATE_DAILY","PERIOD"]
[421239208,1777286911326,1690.78,0.00032876,120]
[421239209,1777286911913,674.61,0.00032876,120]
[421239210,1777286913457,500.0,0.00032876,120]
[421239211,1777286913729,500.0,0.00032877,120]
[421239212,1777286913783,500.0,0.00032876,120]
[421239213,1777286913896,1164.41,0.00032876,120]
[421239214,1777286915171,500.0,0.00032876,120]
[421239215,1777286915297,500.0,0.00032876,120]
[421239216,1777286915583,1082.08,0.00032876,120]
[421239217,1777286917488,1043.04,0.00032876,120]
[421239218,1777286918363,500.0,0.00032876,120]
[421239219,1777286918708,998.96,0.00032876,120]
[421239220,1777286918891,500.0,0.00032876,120]
[421239221,1777286919946,784.08,0.00032876,120]
[421239222,1777286920645,1079.64,0.00032876,120]
[421239223,1777286922235,500.0,0.00032876,120]
[421239224,1777286922930,1143.94,0.00032876,120]
[421239225,1777286923306,500.0,0.00032876,120]
[421239226,1777286923440,1451.57,0.00032876,120]
[421239227,1777286924634,500.0,0.00032876,120]
[421239228,1777286925703,500.0,0.00032876,120]
[421239229,1777286926316,819.21,0.00032876,120]
[421239230,1777286927502,1138.56,0.00032876,120]
[421239231,1777286927767,500.0,0.00032876,120]
[421239232,1777286927816,601.09,0.00032876,120]
[421239233,1777286928768,500.0,0.00032876,120]
[421239234,1777286929031,4201.7,0.00032876,120]
[421239235,1777286929165,500.0,0.00032876,120]
[421239236,1777286929330,996.55,0.00032876,120]
[421239237,1777286929436,1047.55,0.00032876,120]
[421239238,1777286930125,541.91,0.00032876,120]
[421239239,1777286930392,500.0,0.00032876,120]
[421239240,1777286930744,500.0,0.00032876,120]
[421239241,1777286931149,500.0,0.00032876,120]
[421239242,1777286931339,795.18,0.00032876,120]
[421239243,1777286931394,500.0,0.00032876,120]
[421239244,1777286933340,500.0,0.00032876,120]
[421239245,1777286934473,1162.36,0.00032876,120]
[421239246,1777286935017,500.0,0.00032876,120]
[421239247,1777286935162,500.0,0.00032876,120]
[421239248,1777286935246,845.1,0.00032876,120]
[421239249,1777286936521,500.0,0.00032876,120]
[421239250,1777286937152,325.48023421,0.00032876,120]
[421239251,1777286937953,1487.38,0.00032876,120]
[421239252,1777286938723,500.0,0.00032876,120]
[421239253,1777286939013,500.0,0.00032876,120]
[421239254,1777286939348,500.0,0.00032876,120]
[421239255,1777286940290,500.0,0.00032876,120]
[421239256,1777286941654,579.26553359,0.00032876,120]
[421239257,1777286942344,500.0,0.00032876,120]
[421239258,1777286942389,500.0,0.00032876,120]
[421239259,1777286942542,898.94,0.00032876,120]
[421239260,1777286943170,500.0,0.00032876,120]
[421239261,1777286943992,500.0,0.00032876,120]
[421239262,1777286944060,500.0,0.00032876,120]
[421239263,1777286944719,500.0,0.00032876,120]
[421239264,1777286945898,500.62,0.00032876,120]
[421239265,1777286946122,2636.09,0.00032876,120]
[421239266,1777286946342,500.0,0.00032876,120]
[421239267,1777286946785,1789.45,0.00032876,120]
[421239268,1777286947429,500.57379996,0.00032876,120]
[421239269,1777286948715,500.0,0.00032876,120]
[421239270,1777286949085,1085.3,0.00032876,120]
[421239271,1777286950926,892.08,0.00032876,120]
[421239273,1777286952219,500.0,0.00032876,120]
[421239274,1777286952418,631.37,0.00032876,120]
[421239275,1777286953106,581.62,0.00032876,120]
[421239276,1777286955215,343.12122022,0.00032876,120]
[421239277,1777286955271,501.66128542,0.00032876,120]
[421239278,1777286955540,808.43,0.00032876,120]
[421239279,1777286955899,500.0,0.00032876,120]
[421239280,1777286956123,500.0,0.00032876,120]
[421239281,1777286957589,511.40934739,0.00032876,120]
[421239282,1777286957911,500.0,0.00032876,120]
[421239283,1777286958335,741.62,0.00032876,120]
[421239284,1777286958925,500.0,0.00032876,120]
[421239285,1777286958983,249.36878084,0.00032876,120]
[421239286,1777286959559,500.0,0.00032876,120]
[421239287,1777286959613,500.0,0.00032876,120]
[421239288,1777286959807,500.0,0.00032876,120]
[421239289,1777286960891,500.0,0.00032876,120]
[421239290,1777286960937,762.27,0.00032876,120]
[421239291,1777286961839,1157.96,0.00032876,120]
[421239292,1777286962487,633.93,0.00032876,120]
[421239293,1777286963043,502.9765454,0.00032876,120]
[421239294,1777286963644,874.69,0.00032876,120]
[421239295,1777286964279,500.0,0.00032876,120]
[421239296,1777286966292,900.98,0.00032876,120]
[421239297,1777286966449,500.0,0.00032876,120]
[421239298,1777286968231,10204.73,0.00032876,120]
[421239299,1777286968563,196.96965506,0.00032876,120]
[421239300,1777286970705,500.0,0.00032876,120]
[421239301,1777286970751,1526.17,0.00032876,120]
[421239302,1777286971473,500.0,0.00032876,120]
[421239303,1777286971865,500.0,0.00032876,120]
[421239304,1777286972105,891.6,0.00032876,120]
[421239305,1777286973147,562.16006535,0.00032876,120]
[421239306,1777286973481,500.0,0.00032876,120]
[421239307,1777286973555,500.0,0.00032876,120]
[421239308,1777286974754,500.0,0.00032876,120]
[421239309,1777286975010,1367.53,0.00032876,120]
[421239310,1777286975290,500.0,0.00032876,120]
[421239311,1777286976682,683.25,0.00032876,120]
[421239312,1777286976731,737.72,0.00032876,120]
[421239313,1777286976965,1508.4,0.00032876,120]
[421239314,1777286977865,500.0,0.00032876,120]
[421239315,1777286979252,500.0,0.00032876,120]
[421239316,1777286980817,992.31,0.00032876,120]
[421239317,1777286981361,500.0,0.00032876,120]
[421239318,1777286982786,500.0,0.00032876,120]
[421239319,1777286984152,944.61,0.00032876,120]
[421239320,1777286985285,1952.39,0.00032876,120]
[421239321,1777286985881,500.0,0.00032876,120]
[421239322,1777286986209,644.32,0.00032876,120]
[421239323,1777286986262,938.15,0.00032876,120]
[421239324,1777286986356,500.0,0.00032876,120]
[421239325,1777286987453,500.0,0.00032876,120]
[421239326,1777286987712,500.0,0.00032876,120]
[421239327,1777286988271,855.86,0.00032876,120]
[421239328,1777286989580,500.0,0.00032876,120]
[421239329,1777286990333,500.0,0.00032876,120]
[421239330,1777286990497,500.0,0.00032876,120]
[421239331,1777286991477,500.0,0.00032876,120]
[421239332,1777286991749,501.59702668,0.00032876,120]
[421239333,1777286992783,500.0,0.00032876,120]
[421239334,1777286992856,500.0,0.00032877,120]
[421239335,1777286993542,521.50674032,0.000324,120]
[421239336,1777286993586,500.0,0.00032876,120]
[421239337,1777286993860,500.0,0.00032876,120]
[421239338,1777286993919,976.87,0.00032876,120]
[421239339,1777286995018,500.0,0.00032876,120]
[421239340,1777286995346,500.0,0.00032876,120]
[421239341,1777286997291,505.03,0.00032876,120]
[421239342,1777286998166,500.0,0.00032876,120]
[421239343,1777286998421,500.0,0.00032876,120]
[421239344,1777286999469,500.0,0.00032876,120]
[421239345,1777287000405,889.14,0.00032876,120]
[421239346,1777287001036,500.0,0.00032876,120]
[421239347,1777287001166,957.71,0.00032876,120]
[421239348,1777287002930,816.73,0.00032876,120]
[421239349,1777287003508,624.72,0.00032876,120]
[421239350,1777287004183,500.0,0.00032876,120]
[421239351,1777287004642,513.80131395,0.00032876,120]
[421239352,1777287007769,523.03,0.00032876,120]
[421239353,1777287009107,500.91944267,0.00032876,120]
[421239354,1777287009187,500.0,0.00032876,120]
[421239355,1777287010122,179.08286976,0.00032876,120]
[421239356,1777287010306,514.37598108,0.00032876,120]
[421239357,1777287011312,500.0,0.00032876,120]
[421239358,1777287011967,500.0,0.00032876,120]
[421239359,1777287012011,822.98,0.00032876,120]
[421239360,1777287012058,500.0,0.00032876,120]
[421239361,1777287013767,729.37,0.00032876,120]
[421239362,1777287014883,1000.0,0.00032876,120]
[421239363,1777287015115,500.0,0.00032876,120]
[421239364,1777287015309,500.0,0.00032876,120]
[421239365,1777287015818,500.0,0.00032876,120]
[421239366,1777287015960,1044.79,0.00032876,120]
[421239367,1777287016009,2033.75,0.00032876,120]
[421239368,1777287016207,500.96782838,0.00032876,120]
[421239369,1777287017008,500.0,0.00032876,120]
[421239370,1777287018745,2315.34,0.00032876,120]
[421239371,1777287019903,500.0,0.00032876,120]
[421239372,1777287020550,500.0,0.00032876,120]
[421239373,1777287020601,651.78,0.00032876,120]
[421239374,1777287020864,872.94,0.00032876,120]
[421239375,1777287020927,1144.22,0.00032876,120]
[421239376,1777287021618,500.0,0.00032876,120]
[421239377,1777287022712,500.0,0.00032876,120]
[421239378,1777287023465,500.0,0.00032876,120]
[421239379,1777287023829,439.62630531,0.00032876,120]
[421239380,1777287024298,500.0,0.00032876,120]
[421239381,1777287026314,500.0,0.00032876,120]
[421239382,1777287027029,500.0,0.00032876,120]
[421239383,1777287027188,500.0,0.00032876,120]
[421239384,1777287027265,500.0,0.00032876,120]
[421239385,1777287027906,500.0,0.00032876,120]
[421239386,1777287028033,905.69,0.00032876,120]
[421239387,1777287028390,500.0,0.00032876,120]
[421239388,1777287028746,659.77,0.00032876,120]
[421239389,1777287029839,500.0,0.00032876,120]
[421239390,1777287030769,500.89668158,0.00032876,120]
[421239397,1777287031498,500.0,0.00032876,120]
[421239398,1777287031550,572.93,0.00032876,120]
[421239403,1777287032234,-150.0,8.433e-05,2]
[421239404,1777287032244,-150.0,8.433e-05,2]
[421239405,1777287032253,-150.0,8.433e-05,2]
[421239406,1777287032262,-150.0,8.433e-05,2]
[421239407,1777287032272,-169.24096128,8.433e-05,2]
[421239408,1777287032281,-150.0,8.433e-05,2]
[421239409,1777287032290,-500.0,8.44e-05,2]
[421239410,1777287032299,-290.0,8.447e-05,2]
[421239411,1777287032309,-5000.0,8.448e-05,2]
[421239412,1777287032318,-500.0,8.456e-05,2]
[421239413,1777287032327,-500.0,8.456e-05,2]
[421239414,1777287032336,-503.82549123,8.456e-05,2]
[421239415,1777287032345,-447.39513584,8.462e-05,2]
[421239416,1777287032355,-5000.0,8.491e-05,2]
[421239417,1777287032364,-5000.0,8.521e-05,2]
[421239418,1777287032373,-300.0,8.55e-05,2]
[421239419,1777287032383,-150.0,8.667e-05,2]
[421239420,1777287032392,-300.0,8.869e-05,2]
[421239421,1777287032401,-200.0,8.9e-05,3]
[421239422,1777287032411,-150.0,8.901e-05,2]
[421239423,1777287032420,-400.0,9e-05,3]
[421239424,1777287032429,-150.0,9.136e-05,2]
[421239425,1777287032439,-250.0,9.193e-05,2]
[421239426,1777287032448,-399.59323637,9.193e-05,2]
[421239427,1777287032457,-598.1015437,9.193e-05,2]
[421239428,1777287032467,-500.0,9.193e-05,2]
[421239429,1777287032476,-499.99999999,9.193e-05,2]
[421239430,1777287032485,-122582.48131678,9.194e-05,2]
[421239431,1777287032497,-31085.57943065,9.194e-05,2]
[421239432,1777287032511,-13570.45185257,9.194e-05,2]
[421239433,1777287032520,-7115.70139044,9.194e-05,2]
[421239434,1777287032533,-1254.41808677,9.194e-05,2]
[421239435,1777287032545,-1548.0,9.194e-05,2]
[421239436,1777287032635,-378.35139607,9.194e-05,2]
[421239437,1777287032647,-2134.0,9.194e-05,2]
[421239438,1777287032662,-1430.66631438,9.194e-05,2]
[421239439,1777287032855,500.0,0.00032876,120]
[421239440,1777287033179,500.0,0.00032876,120]
[421239441,1777287033930,526.89,0.00032876,120]
[421239442,1777287035175,936.24,0.00032876,120]
[421239443,1777287035878,522.05533974,0.00032876,120]
[421239444,1777287036781,500.0,0.00032876,120]
[421239445,1777287037640,500.0,0.00032876,120]
[421239446,1777287037864,-456.0,9.194e-05,2]
[421239447,1777287037876,-317.0,9.194e-05,2]
[421239448,1777287037888,-410.36733287,9.194e-05,2]
[421239449,1777287037900,-23702.95169268,9.194e-05,2]
[421239450,1777287037948,7236.62,0.00032876,120]
[421239451,1777287037982,-700.0,9.194e-05,2]
[421239452,1777287038023,-410.0850894,9.194e-05,2]
[421239453,1777287038035,-3962.2502192,9.194e-05,2]
[421239454,1777287038047,-1070013.53204658,9.194e-05,2]
[421239455,1777287038159,426.63654865,0.00032876,120]
[421239505,1777287039129,601.2,0.00032876,120]
[421239506,1777287039453,1500.0,0.00032876,120]
[421239509,1777287040118,-13319.33880146,9.194e-05,2]
[421239510,1777287040363,-5804.22900069,9.194e-05,2]
[421239511,1777287040431,1282.75,0.00032876,120]
[421239573,1777287041442,500.0,0.00032876,120]
[421239574,1777287041495,500.0,0.00032876,120]
[421239575,1777287041587,500.0,0.00032876,120]
[421239576,1777287041995,500.0,0.00032876,120]
[421239577,1777287042264,501.55514584,0.00032876,120]
[421239582,1777287042697,-7839.97237987,9.194e-05,2]
[421239585,1777287044554,-359203.13624959,9.194e-05,2]
[421239586,1777287044564,-843.389,9.206e-05,2]
[421239587,1777287044573,-300.0,9.276e-05,2]
[421239588,1777287044583,-5000.0,9.276e-05,2]
[421239589,1777287044592,-300.0,9.276e-05,2]
[421239590,1777287044600,-5000.0,9.276e-05,2]
[421239591,1777287044610,-250.0,9.276e-05,2]
[421239592,1777287044619,-500.0,9.276e-05,2]
[421239593,1777287044628,-250.0,9.276e-05,2]
[421239594,1777287044638,-2481.1616,9.294e-05,2]
[421239595,1777287044648,-2500.0,9.294e-05,2]
[421239596,1777287044657,-225.34182188,9.37e-05,2]
[421239597,1777287044667,-209.89023699,9.37e-05,2]
[421239598,1777287044676,-20634.8511606,9.394e-05,2]
[421239599,1777287044685,-4143.36133373,0.0001,2]
[421239600,1777287044694,-10195.9509912,0.0001,2]
[421239601,1777287044703,-1417.86483871,0.0001,2]
[421239602,1777287044713,-3191.50413338,0.0001,2]
[421239603,1777287044722,-389.11,0.0001,2]
[421239604,1777287044731,-151.0,0.0001,2]
[421239605,1777287044740,-151.0,0.0001,2]
[421239606,1777287044749,-500.0,0.0001,2]
[421239607,1777287044759,-151.0,0.0001,2]
[421239608,1777287044767,-500.0,0.0001,2]
[421239609,1777287044777,-151.0,0.0001,2]
[421239610,1777287044786,-500.0,0.0001,2]
[421239611,1777287044796,-151.0,0.0001,2]
[421239612,1777287044805,-500.0,0.0001,2]
[421239613,1777287044815,-151.0,0.0001,2]
[421239614,1777287044824,-500.0,0.0001,2]
[421239615,1777287044833,-151.0,0.0001,2]
[421239616,1777287044842,-500.0,0.0001,2]
[421239617,1777287044851,-151.0,0.0001,2]
[421239618,1777287044862,-500.0,0.0001,2]
[421239619,1777287044871,-151.0,0.0001,2]
[421239620,1777287044880,-500.0,0.0001,2]
[421239621,1777287044889,-151.0,0.0001,2]
[421239622,1777287044900,-500.0,0.0001,2]
[421239623,1777287044909,-151.0,0.0001,2]
[421239624,1777287044919,-500.0,0.0001,2]
[421239625,1777287044930,-500.0,0.0001,2]
[421239626,1777287044940,-201.74276687,0.0001,2]
[421239627,1777287044949,-389.11,0.00010274,2]
[421239628,1777287044959,-162.27045424,0.00010475,2]
[421239629,1777287044968,-160.0,0.00010475,2]
[421239630,1777287044977,-389.11,0.00010548,2]
[421239631,1777287044987,-389.11,0.00010822,2]
[421239632,1777287044996,-4604.2576441,0.00010878,2]
[421239633,1777287045006,-238.32926763,0.000109,2]
[421239634,1777287045016,-1000.0,0.00010959,2]
[421239635,1777287045025,-1000.0,0.00010959,2]
[421239636,1777287045034,-1000.0,0.00010959,2]
[421239637,1777287045043,-1000.0,0.00010959,2]
[421239638,1777287045053,-1000.0,0.00010959,2]
[421239639,1777287045062,-1000.0,0.00010959,2]
[421239640,1777287045071,-1000.0,0.00010959,2]
[421239641,1777287045081,-1000.0,0.00010959,2]
[421239642,1777287045090,-389.15,0.00011096,2]
[421239643,1777287045099,-8718.79608787,0.00011099,2]
[421239644,1777287045109,-549.017,0.00011099,2]
[421239645,1777287045118,-1027.3487454,0.0001121,2]
[421239646,1777287045127,-500.0,0.00011753,2]
[421239647,1777287045137,-549.017,0.00011858,2]
[421239648,1777287045146,-8718.7960878,0.00011858,2]
[421239649,1777287045156,-158.60953262,0.00012439,2]
[421239650,1777287045165,-339.319,0.0001254,2]
[421239651,1777287045175,-3782.0,0.0001254,2]
[421239652,1777287045184,-250.0,0.00013,2]
[421239653,1777287045194,-500.0,0.00013698,2]
[421239654,1777287045203,-500.0,0.00013698,2]
[421239655,1777287045212,-500.0,0.00013698,2]
[421239656,1777287045222,-500.0,0.00013698,2]
[421239657,1777287045231,-503.22722352,0.00013698,2]
[421239658,1777287045241,-500.0,0.00013698,2]
[421239659,1777287045250,-500.0,0.00013698,2]
[421239660,1777287045259,-500.0,0.00013698,2]
[421239661,1777287045268,-500.0,0.00013698,2]
[421239662,1777287045277,-500.0,0.00013698,2]
[421239663,1777287045287,-500.0,0.00013698,2]
[421239664,1777287045296,-500.0,0.00013698,2]
[421239665,1777287045305,-500.0,0.00013698,2]
[421239666,1777287045314,-500.0,0.00013698,2]
[421239667,1777287045323,-500.0,0.00013698,2]
[421239668,1777287045332,-500.0,0.00013698,2]
[421239669,1777287045342,-500.0,0.00013698,2]
[421239670,1777287045352,-500.0,0.00013698,2]
[421239671,1777287045361,-500.0,0.00013698,2]
[421239672,1777287045371,-364.17725253,0.00013699,2]
[421239674,1777287045380,-712.0,0.00013835,2]
[421239675,1777287045389,-549.017,0.0001461,2]
[421239677,1777287045772,-8718.7960878,0.0001461,2]
[421239678,1777287045782,-300.0,0.00015,2]
[421239679,1777287045791,-160.0,0.00015,2]
[421239680,1777287045801,-3782.0,0.0001554,2]
[421239681,1777287045810,-441.76,0.00016116,2]
[421239682,1777287045819,-150.99,0.00016116,2]
[421239683,1777287045828,-150.0,0.00016137,2]
[421239684,1777287045838,-549.017,0.00017361,2]
[421239685,1777287045847,-8718.7960878,0.00017361,2]
[421239686,1777287045857,-156.0,0.00017413,5]
[421239687,1777287045866,-153.0,0.00017413,5]
[421239688,1777287045875,-150.0,0.00017428,2]
[421239689,1777287045885,-152.0,0.00017648,5]
[421239690,1777287045895,-3782.0,0.0001854,2]
[421239691,1777287045905,-451.0,0.0002,2]
[421239692,1777287045914,-159.0,0.0002,2]
[421239693,1777287045923,-153.0,0.0002,2]
[421239694,1777287045932,-1182.0,0.0002,2]
[421239695,1777287045942,-221.0,0.0002,2]
[421239696,1777287045952,-156.0,0.0002,2]
[421239697,1777287045961,-313.0,0.0002,2]
[421239699,1777287045970,-401.0,0.0002,2]
[421239700,1777287045979,-549.017,0.00020113,2]
[421239701,1777287045989,-500.0,0.00020547,2]
[421239702,1777287045999,-4902.45,0.00020548,2]
[421239703,1777287046009,-4902.45,0.00020548,2]
[421239704,1777287046018,-4902.45,0.00020548,2]
[421239706,1777287046028,-4902.45,0.00020548,2]
[421239708,1777287046037,-4902.45,0.00020548,2]
[421239710,1777287046046,-4902.45,0.00020548,2]
[421239712,1777287046056,-4902.45,0.00020548,2]
[421239713,1777287046065,-4902.45,0.00020548,2]
[421239715,1777287046075,-4902.45,0.00020548,2]
[421239716,1777287046084,-4902.45,0.00020548,2]
[421239717,1777287046093,-4902.45,0.00020548,2]
[421239718,1777287046103,-4902.45,0.00020548,2]
[421239719,1777287046112,-4902.45,0.00020548,2]
[421239720,1777287046121,-4902.45,0.00020548,2]
[421239722,1777287046131,-4902.45,0.00020548,2]
[421239723,1777287046140,-4902.45,0.00020548,2]
[421239724,1777287046149,-4902.45,0.00020548,2]
[421239725,1777287046159,-4902.45,0.00020548,2]
[421239726,1777287046168,-4902.45,0.00020548,2]
[421239727,1777287046177,-4902.45,0.00020548,2]
[421239728,1777287046187,-4902.45,0.00020548,2]
[421239729,1777287046196,-4902.45,0.00020548,2]
[421239730,1777287046206,-4902.45,0.00020548,2]
[421239731,1777287046215,-4902.45,0.00020548,2]
[421239732,1777287046224,-4902.45,0.00020548,2]
[421239733,1777287046234,-4902.45,0.00020548,2]
[421239734,1777287046244,-4902.45,0.00020548,2]
[421239735,1777287046253,-4902.45,0.00020548,2]
[421239736,1777287046262,-4902.45,0.00020548,2]
[421239737,1777287046271,-4902.45,0.00020548,2]
[421239738,1777287046280,-4902.45,0.00020548,2]
[421239739,1777287046290,-4902.45,0.00020548,2]
[421239740,1777287046299,-4902.45,0.00020548,2]
[421239741,1777287046309,-4902.45,0.00020548,2]
[421239742,1777287046318,-4902.45,0.00020548,2]
[421239743,1777287046327,-4902.45,0.00020548,2]
[421239744,1777287046336,-4902.45,0.00020548,2]
[421239745,1777287046346,-4902.45,0.00020548,2]
[421239746,1777287046355,-4902.45,0.00020548,2]
[421239747,1777287046364,-4902.45,0.00020548,2]
[421239748,1777287046374,-4902.45,0.00020548,2]
[421239749,1777287046384,-4902.45,0.00020548,2]
[421239750,1777287046393,-4902.45,0.00020548,2]
[421239751,1777287046402,-4902.45,0.00020548,2]
[421239752,1777287046411,-4902.45,0.00020548,2]
[421239753,1777287046422,-4902.45,0.00020548,2]
[421239754,1777287046431,-4902.45,0.00020548,2]
[421239755,1777287046440,-4902.45,0.00020548,2]
[421239756,1777287046450,-4902.45,0.00020548,2]
[421239757,1777287046460,-4902.45,0.00020548,2]
[421239758,1777287046469,-4902.45,0.00020548,2]
[421239759,1777287046478,-700.0,0.000209,7]
[421239760,1777287046487,-408.0,0.00021,2]
[421239761,1777287046496,-451.0,0.00021,2]
[421239762,1777287046506,-159.0,0.00021,2]
[421239763,1777287046516,-153.0,0.00021,2]
[421239764,1777287046525,-1182.0,0.00021,2]
[421239765,1777287046534,-221.0,0.00021,2]
[421239766,1777287046543,-168.0,0.00021,2]
[421239767,1777287046553,-313.0,0.00021,2]
[421239768,1777287046562,-401.0,0.00021,2]
[421239769,1777287046571,-16248.54064867,0.00021491,58]
[421239770,1777287046580,-3782.0,0.0002154,2]
[421239771,1777287046589,-500.0,0.00021918,2]
[421239772,1777287046599,-500.0,0.00021918,2]
[421239773,1777287046608,-500.0,0.00021918,2]
[421239774,1777287046618,-500.0,0.00021918,2]
[421239775,1777287046627,-500.0,0.00021918,2]
[421239776,1777287046637,-500.0,0.00021918,2]
[421239777,1777287046646,-500.0,0.00021918,2]
[421239778,1777287046655,-500.0,0.00021918,2]
[421239779,1777287046664,-500.0,0.00021918,2]
[421239780,1777287046673,-500.0,0.00021918,2]
[421239781,1777287046682,-500.0,0.00021918,2]
[421239782,1777287046691,-500.0,0.00021918,2]
[421239783,1777287046700,-415.68427578,0.00021918,2]
[421239784,1777287046709,-408.0,0.00022,2]
[421239785,1777287046719,-451.0,0.00022,2]
[421239786,1777287046728,-159.0,0.00022,2]
[421239787,1777287046737,-168.0,0.00022,2]
[421239788,1777287046746,-1182.0,0.00022,2]
[421239789,1777287046755,-221.0,0.00022,2]
[421239790,1777287046764,-313.0,0.00022,2]
[421239791,1777287046773,-401.0,0.00022,2]
[421239792,1777287046782,-549.017,0.00022865,2]
[421239793,1777287046792,-408.0,0.00023,2]
[421239794,1777287046801,-451.0,0.00023,2]
[421239795,1777287046811,-159.0,0.00023,2]
[421239796,1777287046821,-1182.0,0.00023,2]
[421239797,1777287046830,-221.0,0.00023,2]
[421239798,1777287046839,-313.0,0.00023,2]
[421239799,1777287046849,-401.0,0.00023,2]
[421239800,1777287046858,-500.0,0.00023835,30]
[421239801,1777287046868,-500.0,0.00023835,30]
[421239802,1777287046877,-500.0,0.00023835,30]
[421239803,1777287046886,-500.0,0.00023835,30]
[421239804,1777287046895,-500.0,0.00023835,30]
[421239805,1777287046904,-500.0,0.00023835,30]
[421239806,1777287046914,-500.0,0.00023835,30]
[421239807,1777287046923,-500.0,0.00023835,30]
[421239808,1777287046932,-520.0,0.00023835,30]
[421239809,1777287046943,-158.60953261,0.00023841,2]
[421239810,1777287046952,-408.0,0.00024,2]
[421239811,1777287046961,-451.0,0.00024,2]
[421239812,1777287046970,-159.0,0.00024,2]
[421239813,1777287046979,-1182.0,0.00024,2]
[421239814,1777287046989,-221.0,0.00024,2]
[421239815,1777287046998,-313.0,0.00024,2]
[421239816,1777287047008,-401.0,0.00024,2]
[421239817,1777287047017,-297.59,0.00024342,2]
[421239818,1777287047027,-297.59,0.00024423,2]
[421239819,1777287047036,-3782.0,0.0002454,2]
[421239820,1777287047047,-500.0,0.00024899,2]
[421239821,1777287047057,-500.0,0.00024899,2]
[421239822,1777287047066,-243.394704,0.000249,2]
[421239823,1777287047076,-243.394704,0.000249,2]
[421239824,1777287047085,-243.394704,0.000249,2]
[421239825,1777287047095,-243.394704,0.000249,2]
[421239826,1777287047104,-274.581385,0.000249,2]
[421239827,1777287047114,-274.581385,0.000249,2]
[421239828,1777287047124,-274.581385,0.000249,2]
[421239829,1777287047134,-274.581385,0.000249,2]
[421239830,1777287047144,-420.0,0.00025,2]
[421239831,1777287047154,-452.0,0.00025,2]
[421239832,1777287047164,-171.0,0.00025,2]
[421239833,1777287047173,-1182.0,0.00025,2]
[421239834,1777287047182,-229.0,0.00025,2]
[421239835,1777287047191,-319.57777299,0.00025,2]
[421239836,1777287047201,-409.0,0.00025,2]
[421239837,1777287047211,-16262.44565261,0.00025492,77]
[421239838,1777287047220,-549.017,0.00025617,2]
[421239839,1777287047230,-281.01764716,0.00027397,2]
[421239840,1777287047239,-500.0,0.00027397,2]
[421239841,1777287047248,-1500.0,0.00027397,2]
[421239842,1777287047257,-300.0,0.00027397,12]
[421239843,1777287047267,-297.59,0.00027398,2]
[421239844,1777287047276,-6009.96,0.000274,7]
[421239845,1777287047286,-500.0,0.00027452,2]